fUST/lending_fUST_20250723
["ID","MTS","AMOUNT","RATE_DAILY","PERIOD"]
[374255169,1753257042013,-2603.94,0.00019452,2]
[374255170,1753257042022,-468.79007355,0.00019452,2]
[374255171,1753257042031,-460.0,0.00019452,2]
[374255172,1753257042041,-899.61,0.00019452,2]
[374255173,1753257042050,-460.0,0.00019452,2]
[374255174,1753257042060,-460.0,0.00019452,2]
[374255175,1753257042070,-796.99,0.00019452,2]
[374255176,1753257042080,-460.0,0.00019452,2]
[374255177,1753257042091,-460.0,0.00019452,2]
[374255178,1753257042102,-337.46650543,0.00019452,2]
[374255179,1753257042111,-460.0,0.00019452,2]
[374255180,1753257042121,-460.0,0.00019452,2]
[374255181,1753257042131,-460.0,0.00019452,2]
[374255182,1753257042140,-460.0,0.00019452,2]
[374255183,1753257042149,-460.0,0.00019452,2]
[374255184,1753257042159,-460.0,0.00019452,2]
[374255185,1753257042168,-460.0,0.00019452,2]
[374255186,1753257042179,-460.0,0.00019452,2]
[374255187,1753257042189,-460.0,0.00019452,2]
[374255188,1753257042198,-491.82,0.00019452,2]
[374255189,1753257042208,-328.29,0.00019452,2]
[374255190,1753257042218,-1013.9,0.00019452,2]
[374255191,1753257042226,-460.0,0.00019452,2]
[374255192,1753257042236,-460.0,0.00019452,2]
[374255193,1753257042245,-460.0,0.00019452,2]
[374255194,1753257042255,-508.62,0.00019452,2]
[374255195,1753257042264,-460.0,0.00019452,2]
[374255196,1753257042273,-460.0,0.00019452,2]
[374255197,1753257042283,-460.0,0.00019452,2]
[374255198,1753257042294,-460.0,0.00019452,2]
[374255199,1753257042303,-460.0,0.00019452,2]
[374255200,1753257042312,-481.29,0.00019452,2]
[374255201,1753257042322,-460.0,0.00019452,2]
[374255202,1753257042331,-460.0,0.00019452,2]
[374255203,1753257042342,-460.0,0.00019452,2]
[374255204,1753257042351,-460.0,0.00019452,2]
[374255205,1753257042361,-460.0,0.00019452,2]
[374255206,1753257042370,-596.2,0.00019452,2]
[374255207,1753257042380,-162.91456213,0.00019452,2]
[374255209,1753257042389,-241.70452893,0.00019452,2]
[374255210,1753257042398,-287.20744957,0.00019452,2]
[374255211,1753257042407,-460.0,0.00019452,2]
[374255212,1753257042416,-460.0,0.00019452,2]
[374255213,1753257042426,-460.0,0.00019452,2]
[374255214,1753257042435,-460.0,0.00019452,2]
[374255215,1753257042444,-460.0,0.00019452,2]
[374255216,1753257042454,-470.51119168,0.00019452,2]
[374255217,1753257042463,-933.44,0.00019452,2]
[374255218,1753257042472,-460.0,0.00019452,2]
[374255219,1753257042481,-1447.7,0.00019452,2]
[374255220,1753257042491,-512.0331235,0.00019452,2]
[374255221,1753257042500,-596.7,0.00019452,2]
[374255222,1753257042510,-460.0,0.00019452,2]
[374255223,1753257042520,-500.0,0.00019452,2]
[374255224,1753257042529,-1196.82,0.00019522,2]
[374255225,1753257042539,-631.11,0.00019624,2]
[374255226,1753257042548,-1000.0,0.00019721,2]
[374255228,1753257042558,-286.0,0.00019722,2]
[374255229,1753257042567,-216.64909355,0.00019726,2]
[374255231,1753257042577,-151.0,0.00019726,2]
[374255232,1753257042588,-500.0,0.00019726,2]
[374255233,1753257042598,-151.0,0.00019726,2]
[374255234,1753257042608,-353.51129216,0.00019726,2]
[374255235,1753257042618,-151.78234512,0.00019726,2]
[374255236,1753257042627,-151.0,0.00019726,2]
[374255238,1753257042774,-231.49740873,0.00019726,2]
[374255240,1753257042784,-151.0,0.00019726,2]
[374255241,1753257042793,-500.0,0.00019726,2]
[374255244,1753257042803,-454.6672677,0.00019726,2]
[374255245,1753257042813,-570.48395239,0.00019726,2]
[374255246,1753257042823,-500.0,0.00019726,2]
[374255248,1753257042832,-295.74231623,0.00019726,2]
[374255249,1753257042845,-500.0,0.00019726,2]
[374255250,1753257042854,-500.0,0.00019726,2]
[374255251,1753257042865,-500.0,0.00019726,2]
[374255253,1753257042874,-151.0,0.00019726,2]
[374255254,1753257042884,-151.0,0.00019726,2]
[374255255,1753257042894,-500.0,0.00019726,2]
[374255256,1753257042904,-500.0,0.00019726,2]
[374255257,1753257042913,-500.0,0.00019726,2]
[374255258,1753257042923,-151.0,0.00019726,2]
[374255259,1753257042933,-671.0,0.00019726,2]
[374255260,1753257042942,-921.62,0.00019726,2]
[374255261,1753257042951,-1293.97,0.00019726,2]
[374255262,1753257042961,-460.0,0.00019726,2]
[374255263,1753257042971,-724.41,0.00019726,2]
[374255264,1753257042980,-460.0,0.00019726,2]
[374255265,1753257042990,-460.0,0.00019726,2]
[374255266,1753257042999,-159.46,0.00019726,2]
[374255267,1753257043008,-460.0,0.00019726,2]
[374255268,1753257043018,-460.0,0.00019726,2]
[374255269,1753257043027,-155.83487081,0.00019726,2]
[374255270,1753257043037,-460.0,0.00019726,2]
[374255271,1753257043047,-2010.12,0.00019726,2]
[374255272,1753257043057,-460.0,0.00019726,2]
[374255273,1753257043066,-460.0,0.00019726,2]
[374255274,1753257043076,-418.65,0.00019726,2]
[374255276,1753257043086,-716.25,0.00019726,2]
[374255277,1753257043098,-548.92,0.00019726,2]
[374255279,1753257043112,-460.0,0.00019726,2]
[374255280,1753257043121,-460.0,0.00019726,2]
[374255281,1753257043131,-460.0,0.00019726,2]
[374255282,1753257043140,-460.0,0.00019726,2]
[374255283,1753257043151,-460.0,0.00019726,2]
[374255284,1753257043160,-460.0,0.00019726,2]
[374255285,1753257043171,-460.0,0.00019726,2]
[374255286,1753257043183,-460.0,0.00019726,2]
[374255287,1753257043193,-460.0,0.00019726,2]
[374255288,1753257043202,-1481.78,0.00019726,2]
[374255289,1753257043211,-570.33,0.00019726,2]
[374255290,1753257043221,-874.4,0.00019726,2]
[374255291,1753257043230,-846.06,0.00019726,2]
[374255292,1753257043239,-460.0,0.00019726,2]
[374255293,1753257043249,-2603.94,0.00019726,2]
[374255294,1753257043259,-460.0,0.00019726,2]
[374255295,1753257043268,-899.61,0.00019726,2]
[374255296,1753257043278,-460.0,0.00019726,2]
[374255297,1753257043289,-460.0,0.00019726,2]
[374255298,1753257043298,-796.99,0.00019726,2]
[374255299,1753257043309,-460.0,0.00019726,2]
[374255300,1753257043318,-208.48,0.00019726,2]
[374255301,1753257043327,-460.0,0.00019726,2]
[374255303,1753257043339,-460.0,0.00019726,2]
[374255305,1753257043348,-460.0,0.00019726,2]
[374255307,1753257043358,-277.1,0.00019726,2]
[374255308,1753257043367,-460.0,0.00019726,2]
[374255309,1753257043376,-187.15,0.00019726,2]
[374255310,1753257043386,-460.0,0.00019726,2]
[374255311,1753257043395,-491.82,0.00019726,2]
[374255312,1753257043404,-1013.9,0.00019726,2]
[374255313,1753257043414,-460.0,0.00019726,2]
[374255314,1753257043423,-563.36,0.00019726,2]
[374255315,1753257043433,-460.0,0.00019726,2]
[374255316,1753257043443,-460.0,0.00019726,2]
[374255317,1753257043452,-460.0,0.00019726,2]
[374255318,1753257043462,-460.0,0.00019726,2]
[374255319,1753257043471,-460.0,0.00019726,2]
[374255320,1753257043481,-460.0,0.00019726,2]
[374255321,1753257043493,-460.0,0.00019726,2]
[374255322,1753257043505,-597.85,0.00019726,2]
[374255323,1753257043515,-460.0,0.00019726,2]
[374255324,1753257043524,-460.0,0.00019726,2]
[374255325,1753257043533,-538.62336753,0.00019726,2]
[374255326,1753257043543,-460.0,0.00019726,2]
[374255327,1753257043552,-460.0,0.00019726,2]
[374255328,1753257043561,-933.44,0.00019726,2]
[374255329,1753257043572,-1447.7,0.00019726,2]
[374255330,1753257043581,-460.0,0.00019726,2]
[374255331,1753257043593,-508.81334415,0.00019941,2]
[374255332,1753257043603,-501.89042996,0.00019973,2]
[374255333,1753257043615,-631.11,0.00019999,2]
[374255334,1753257043625,-289.11970163,0.0002,2]
[374255335,1753257043636,-500.0,0.0002,2]
[374255336,1753257043645,-160.37715121,0.0002,2]
[374255337,1753257043655,-301.20830661,0.0002,2]
[374255338,1753257043664,-151.0,0.0002,2]
[374255339,1753257043674,-500.0,0.0002,2]
[374255340,1753257043684,-500.0,0.0002,2]
[374255341,1753257043694,-500.0,0.0002,2]
[374255342,1753257043704,-605.37951896,0.0002,2]
[374255343,1753257043714,-500.0,0.0002,2]
[374255344,1753257043723,-151.0,0.0002,2]
[374255345,1753257043733,-151.0,0.0002,2]
[374255346,1753257043742,-306.42119693,0.0002,2]
[374255347,1753257043752,-265.14297112,0.0002,2]
[374255348,1753257043761,-500.0,0.0002,2]
[374255349,1753257043770,-151.0,0.0002,2]
[374255350,1753257043781,-671.0,0.0002,2]
[374255351,1753257043790,-200.0,0.0002,2]
[374255352,1753257043800,-921.62,0.0002,2]
[374255353,1753257043810,-1293.97,0.0002,2]
[374255354,1753257043820,-724.41,0.0002,2]
[374255355,1753257043830,-460.0,0.0002,2]
[374255356,1753257043840,-460.0,0.0002,2]
[374255357,1753257043849,-560.73107567,0.0002,2]
[374255358,1753257043859,-460.0,0.0002,2]
[374255359,1753257043869,-460.0,0.0002,2]
[374255360,1753257043878,-2010.12,0.0002,2]
[374255361,1753257043889,-402.69429499,0.0002,2]
[374255362,1753257043898,-716.25,0.0002,2]
[374255363,1753257043908,-151.61561606,0.0002,2]
[374255364,1753257043917,-460.0,0.0002,2]
[374255365,1753257043927,-460.0,0.0002,2]
[374255366,1753257043936,-460.0,0.0002,2]
[374255367,1753257043945,-460.0,0.0002,2]
[374255368,1753257043955,-460.0,0.0002,2]
[374255369,1753257043965,-460.0,0.0002,2]
[374255370,1753257043976,-287.94,0.0002,2]
[374255371,1753257043987,-460.0,0.0002,2]
[374255372,1753257043997,-530.58,0.0002,2]
[374255373,1753257044007,-1481.78,0.0002,2]
[374255374,1753257044017,-570.33,0.0002,2]
[374255375,1753257044026,-874.4,0.0002,2]
[374255376,1753257044035,-846.06,0.0002,2]
[374255377,1753257044045,-261.37,0.0002,2]
[374255378,1753257044054,-2603.94,0.0002,2]
[374255379,1753257044064,-460.0,0.0002,2]
[374255380,1753257044075,-899.61,0.0002,2]
[374255381,1753257044084,-460.0,0.0002,2]
[374255382,1753257044099,-460.0,0.0002,2]
[374255383,1753257044109,-796.99,0.0002,2]
[374255384,1753257044118,-460.0,0.0002,2]
[374255385,1753257044127,-460.0,0.0002,2]
[374255386,1753257044138,-460.0,0.0002,2]
[374255387,1753257044147,-460.0,0.0002,2]
[374255388,1753257044156,-579.42,0.0002,2]
[374255389,1753257044165,-460.0,0.0002,2]
[374255390,1753257044175,-491.82,0.0002,2]
[374255391,1753257044185,-1013.9,0.0002,2]
[374255392,1753257044194,-460.0,0.0002,2]
[374255393,1753257044203,-460.0,0.0002,2]
[374255394,1753257044212,-460.0,0.0002,2]
[374255395,1753257044221,-460.0,0.0002,2]
[374255396,1753257044231,-460.0,0.0002,2]
[374255397,1753257044240,-460.0,0.0002,2]
[374255398,1753257044249,-460.0,0.0002,2]
[374255399,1753257044259,-460.0,0.0002,2]
[374255400,1753257044268,-460.0,0.0002,2]
[374255401,1753257044280,-933.44,0.0002,2]
[374255402,1753257044290,-1447.7,0.0002,2]
[374255403,1753257044301,-460.0,0.0002,2]
[374255404,1753257044310,-485.454039,0.00020187,2]
[374255405,1753257044320,-921.62,0.00020273,2]
[374255406,1753257044329,-1293.97,0.00020273,2]
[374255407,1753257044338,-724.41,0.00020273,2]
[374255408,1753257044347,-460.0,0.00020273,2]
[374255409,1753257044357,-460.0,0.00020273,2]
[374255410,1753257044367,-460.0,0.00020273,2]
[374255411,1753257044377,-460.0,0.00020273,2]
[374255412,1753257044386,-2010.12,0.00020273,2]
[374255413,1753257044396,-716.25,0.00020273,2]
[374255414,1753257044406,-460.0,0.00020273,2]
[374255415,1753257044416,-460.0,0.00020273,2]
[374255416,1753257044426,-460.0,0.00020273,2]
[374255417,1753257044436,-460.0,0.00020273,2]
[374255418,1753257044447,-460.0,0.00020273,2]
[374255419,1753257044457,-460.0,0.00020273,2]
[374255420,1753257044466,-460.0,0.00020273,2]
[374255421,1753257044476,-1481.78,0.00020273,2]
[374255422,1753257044486,-570.33,0.00020273,2]
[374255423,1753257044497,-874.4,0.00020273,2]
[374255424,1753257044507,-846.06,0.00020273,2]
[374255425,1753257044516,-2603.94,0.00020273,2]
[374255426,1753257044526,-177.41351395,0.00020273,2]
[374255427,1753257044535,-899.61,0.00020273,2]
[374255428,1753257044545,-460.0,0.00020273,2]
[374255429,1753257044554,-460.0,0.00020273,2]
[374255430,1753257044563,-796.99,0.00020273,2]
[374255431,1753257044573,-460.0,0.00020273,2]
[374255432,1753257044582,-460.0,0.00020273,2]
[374255433,1753257044592,-460.0,0.00020273,2]
[374255434,1753257044601,-460.0,0.00020273,2]
[374255435,1753257044611,-460.0,0.00020273,2]
[374255436,1753257044620,-491.82,0.00020273,2]
[374255437,1753257044629,-1013.9,0.00020273,2]
[374255438,1753257044639,-460.0,0.00020273,2]
[374255439,1753257044648,-460.0,0.00020273,2]
[374255440,1753257044660,-460.0,0.00020273,2]
[374255441,1753257044669,-460.0,0.00020273,2]
[374255442,1753257044679,-354.42757029,0.00020273,2]
[374255443,1753257044692,-460.0,0.00020273,2]
[374255444,1753257044702,-460.0,0.00020273,2]
[374255445,1753257044712,-460.0,0.00020273,2]
[374255446,1753257044721,-933.44,0.00020273,2]
[374255447,1753257044731,-1447.7,0.00020273,2]
[374255448,1753257044740,-549.46,0.00020273,2]
[374255449,1753257044749,-510.0,0.00020274,2]
[374255450,1753257044758,-191.63667705,0.00020274,2]
[374255451,1753257044768,-500.0,0.00020274,2]
[374255452,1753257044777,-500.0,0.00020274,2]
[374255453,1753257044786,-500.0,0.00020274,2]
[374255454,1753257044796,-456.39167255,0.00020274,2]
[374255455,1753257044805,-253.52046372,0.00020274,2]
[374255456,1753257044814,-239.87796106,0.00020274,2]
[374255457,1753257044823,-500.0,0.00020274,2]
[374255458,1753257044833,-151.0,0.00020274,2]
[374255459,1753257044843,-671.0,0.00020274,2]
[374255460,1753257044853,-160.0,0.00020395,2]
[374255461,1753257044863,-568.80064315,0.00020409,2]
[374255462,1753257044872,-328.04,0.00020433,3]
[374255463,1753257044882,-631.11,0.00020446,2]
[374255464,1753257044891,-214.67886746,0.00020521,3]
[374255465,1753257044900,-160.0,0.00020527,2]
[374255466,1753257044910,-840.06856235,0.00020527,2]
[374255467,1753257044919,-160.0,0.00020527,2]
[374255468,1753257044929,-215.84326551,0.00020527,2]
[374255469,1753257044938,-160.0,0.00020527,2]
[374255470,1753257044949,-10272.04465687,0.00020527,2]
[374255471,1753257044965,-2350.32403701,0.00020527,2]
[374255472,1753257044974,-160.0,0.00020527,2]
[374255473,1753257044983,-476.696448,0.00020527,2]
[374255474,1753257044993,-231.11583447,0.00020527,2]
[374255475,1753257045002,-160.0,0.00020527,2]
[374255476,1753257045012,-921.62,0.00020547,2]
[374255477,1753257045022,-1293.97,0.00020547,2]
[374255478,1753257045031,-724.41,0.00020547,2]
[374255479,1753257045040,-160.12906897,0.00020547,2]
[374255480,1753257045050,-460.0,0.00020547,2]
[374255481,1753257045060,-460.0,0.00020547,2]
[374255482,1753257045069,-460.0,0.00020547,2]
[374255483,1753257045078,-2010.12,0.00020547,2]
[374255484,1753257045090,-716.25,0.00020547,2]
[374255485,1753257045100,-460.0,0.00020547,2]
[374255486,1753257045109,-569.96550915,0.00020547,2]
[374255487,1753257045118,-460.0,0.00020547,2]
[374255488,1753257045128,-460.0,0.00020547,2]
[374255489,1753257045138,-280.03390224,0.00020547,2]
[374255490,1753257045158,-179.96609776,0.00020547,2]
[374255491,1753257045167,-460.0,0.00020547,2]
[374255492,1753257045178,-460.0,0.00020547,2]
[374255493,1753257045187,-414.69625586,0.00020547,2]
[374255494,1753257045326,-468.73,0.00019178,2]
[374255495,1753257045335,-515.4,0.00020547,2]
[374255639,1753257070703,193.67,0.00014387,2]
[374255640,1753257071145,387.33,0.00015694,2]
[374255641,1753257092592,4009.1,0.00026027,120]
[374255642,1753257149223,186.27,0.000142,2]
[374255643,1753257149661,372.54,0.00015491,2]
[374255644,1753257230933,179.16,0.00014199,2]
[374255645,1753257231409,358.32,0.0001549,2]
[374255646,1753257262729,67227.951516,0.000245,120]
[374255647,1753257314657,182.0,0.00014733,2]
[374255648,1753257315064,364.0,0.00016072,2]
[374255650,1753257396577,175.05,0.00014609,2]
[374255651,1753257397013,350.1,0.00015937,2]
[374255654,1753257478359,168.37,0.0001465,2]
[374255655,1753257478775,336.73,0.00015982,2]
[374255656,1753257561038,161.94,0.00014783,2]
[374255657,1753257561454,323.88,0.00016127,2]
[374255658,1753257638708,1000.0,0.00026027,120]
[374255659,1753257642578,155.75,0.00014727,2]
[374255660,1753257642999,311.51,0.00016065,2]
[374255662,1753257722187,150.0,0.00014723,2]
[374255663,1753257722634,299.61,0.00016062,2]
[374255664,1753257805488,150.0,0.0001486,2]
[374255665,1753257805884,288.17,0.00016211,2]
[374255666,1753257887100,150.0,0.00014803,2]
[374255667,1753257887506,277.02,0.00016149,2]
[374255668,1753257970425,150.0,0.00014902,2]
[374255669,1753257970889,266.15,0.00016257,2]
[374255671,1753258001389,436.908635,0.00013699,2]
[374255672,1753258046141,-24900.0,0.0001814,2]
[374255673,1753258046163,-425.80004587,0.00018278,2]
[374255674,1753258046186,-381.61000813,0.00019075,2]
[374255675,1753258046208,-300.0,0.00019077,2]
[374255676,1753258046231,-169.33,0.00019168,3]
[374255677,1753258046252,-508.03,0.00019168,3]
[374255678,1753258046273,-671.0,0.00019172,2]
[374255679,1753258046293,-500.0,0.00019173,2]
[374255680,1753258046314,-640.54362486,0.00019173,2]
[374255681,1753258046334,-514.43799619,0.00019173,2]
[374255682,1753258046353,-502.59406956,0.00019173,2]
[374255683,1753258046374,-500.0,0.00019173,2]
[374255684,1753258046394,-189.06793322,0.00019173,2]
[374255685,1753258046414,-500.53746814,0.00019173,2]
[374255686,1753258046434,-500.0,0.00019173,2]
[374255687,1753258046454,-500.82255482,0.00019173,2]
[374255688,1753258046475,-501.17337381,0.00019173,2]
[374255689,1753258046495,-500.0,0.00019173,2]
[374255690,1753258046517,-500.0,0.00019173,2]
[374255691,1753258046550,-493.8414142,0.00019173,2]
[374255692,1753258046575,-158.131,0.00019177,2]
[374255693,1753258046599,-500.0,0.00019177,2]
[374255694,1753258046621,-599.54522803,0.00019177,2]
[374255695,1753258046646,-500.0,0.00019177,2]
[374255696,1753258046667,-163.6979379,0.00019177,2]
[374255697,1753258046688,-500.0,0.00019177,2]
[374255698,1753258046710,-500.0,0.00019177,2]
[374255699,1753258046731,-535.78351244,0.00019177,2]
[374255700,1753258046753,-500.0,0.00019177,2]
[374255701,1753258046774,-500.0,0.00019177,2]
[374255702,1753258046796,-500.0,0.00019177,2]
[374255703,1753258046817,-500.0,0.00019177,2]
[374255704,1753258046838,-486.82142718,0.00019177,2]
[374255705,1753258046859,-500.0,0.00019177,2]
[374255706,1753258046881,-500.0,0.00019177,2]
[374255707,1753258046902,-500.0,0.00019177,2]
[374255708,1753258046923,-500.0,0.00019177,2]
[374255709,1753258046947,-500.0,0.00019177,2]
[374255710,1753258046968,-500.0,0.00019177,2]
[374255711,1753258046991,-500.0,0.00019177,2]
[374255712,1753258047014,-391.01458187,0.00019177,2]
[374255713,1753258047035,-500.0,0.00019177,2]
[374255714,1753258047057,-500.0,0.00019177,2]
[374255715,1753258047078,-500.0,0.00019177,2]
[374255716,1753258047101,-500.0,0.00019177,2]
[374255717,1753258047123,-500.0,0.00019177,2]
[374255718,1753258047142,-515.33516461,0.00019177,2]
[374255719,1753258047163,-500.0,0.00019177,2]
[374255720,1753258047184,-500.0,0.00019177,2]
[374255721,1753258047207,-500.0,0.00019177,2]
[374255722,1753258047230,-500.0,0.00019177,2]
[374255723,1753258047251,-500.0,0.00019177,2]
[374255724,1753258047273,-500.0,0.00019177,2]
[374255725,1753258047295,-500.0,0.00019177,2]
[374255726,1753258047316,-498.12730984,0.00019177,2]
[374255727,1753258047340,-500.0,0.00019177,2]
[374255728,1753258047364,-500.0,0.00019177,2]
[374255729,1753258047386,-500.0,0.00019177,2]
[374255730,1753258047410,-500.0,0.00019177,2]
[374255731,1753258047433,-500.0,0.00019177,2]
[374255732,1753258047454,-423.674436,0.00019177,2]
[374255733,1753258047478,-500.0,0.00019177,2]
[374255734,1753258047499,-500.0,0.00019177,2]
[374255735,1753258047521,-500.0,0.00019177,2]
[374255736,1753258047542,-500.0,0.00019177,2]
[374255737,1753258047567,-500.0,0.00019177,2]
[374255738,1753258047589,-500.0,0.00019177,2]
[374255739,1753258047611,-500.0,0.00019177,2]
[374255740,1753258047635,-500.0,0.00019177,2]
[374255741,1753258047658,-500.0,0.00019177,2]
[374255742,1753258047680,-500.0,0.00019177,2]
[374255743,1753258047702,-499.99999999,0.00019177,2]
[374255744,1753258047723,-460.0,0.00019178,2]
[374255745,1753258047743,-464.76645815,0.00019178,2]
[374255746,1753258047763,-460.0,0.00019178,2]
[374255747,1753258047784,-460.0,0.00019178,2]
[374255748,1753258047804,-460.0,0.00019178,2]
[374255749,1753258047825,-460.0,0.00019178,2]
[374255750,1753258047847,-460.0,0.00019178,2]
[374255751,1753258047868,-460.0,0.00019178,2]
[374255752,1753258047889,-152.43128864,0.00019178,2]
[374255753,1753258047910,-460.0,0.00019178,2]
[374255754,1753258047931,-460.0,0.00019178,2]
[374255755,1753258047953,-460.0,0.00019178,2]
[374255756,1753258047974,-460.0,0.00019178,2]
[374255757,1753258047995,-460.0,0.00019178,2]
[374255758,1753258048016,-460.0,0.00019178,2]
[374255759,1753258048036,-460.0,0.00019178,2]
[374255760,1753258048057,-460.0,0.00019178,2]
[374255761,1753258048079,-460.0,0.00019178,2]
[374255762,1753258048100,-460.64237295,0.00019178,2]
[374255763,1753258048120,-460.0,0.00019178,2]
[374255764,1753258048284,-465.47484389,0.00019178,2]
[374255765,1753258048308,-460.0,0.00019178,2]
[374255766,1753258048332,-463.81142151,0.00019178,2]
[374255767,1753258048353,-460.0,0.00019178,2]
[374255768,1753258048375,-460.0,0.00019178,2]
[374255769,1753258048396,-415.75652848,0.00019178,2]
[374255770,1753258048416,-467.37468438,0.00019178,2]
[374255771,1753258048442,-460.0,0.00019178,2]
[374255772,1753258048479,-460.0,0.00019178,2]
[374255773,1753258048502,-460.0,0.00019178,2]
[374255774,1753258048524,-460.0,0.00019178,2]
[374255775,1753258048549,-981.72,0.00019178,2]
[374255776,1753258048577,-460.0,0.00019178,2]
[374255777,1753258048598,-460.0,0.00019178,2]
[374255778,1753258048620,-460.0,0.00019178,2]
[374255779,1753258048643,-460.0,0.00019178,2]
[374255780,1753258048664,-460.0,0.00019178,2]
[374255781,1753258048685,-460.0,0.00019178,2]
[374255782,1753258048706,-460.0,0.00019178,2]
[374255783,1753258048728,-460.0,0.00019178,2]
[374255784,1753258048748,-460.0,0.00019178,2]
[374255785,1753258048768,-239.21524657,0.00019178,2]
[374255786,1753258048790,-460.0,0.00019178,2]
[374255787,1753258048813,-460.0,0.00019178,2]
[374255788,1753258048834,-460.0,0.00019178,2]
[374255789,1753258048855,-460.0,0.00019178,2]
[374255790,1753258048877,-460.0,0.00019178,2]
[374255791,1753258048897,-461.86640655,0.00019178,2]
[374255792,1753258048918,-460.0,0.00019178,2]
[374255793,1753258048939,-460.0,0.00019178,2]
[374255794,1753258048963,-460.0,0.00019178,2]
[374255795,1753258048984,-460.0,0.00019178,2]
[374255796,1753258049006,-460.0,0.00019178,2]
[374255797,1753258049027,-467.66833686,0.00019178,2]
[374255798,1753258049048,-460.0,0.00019178,2]
[374255799,1753258049070,-460.0,0.00019178,2]
[374255800,1753258049092,-460.0,0.00019178,2]
[374255801,1753258049114,-460.0,0.00019178,2]
[374255802,1753258049134,-460.0,0.00019178,2]
[374255803,1753258049155,-460.0,0.00019178,2]
[374255804,1753258049176,-460.0,0.00019178,2]
[374255805,1753258049199,-460.0,0.00019178,2]
[374255806,1753258049221,-460.0,0.00019178,2]
[374255807,1753258049243,-460.0,0.00019178,2]
[374255808,1753258049264,-460.0,0.00019178,2]
[374255809,1753258049285,-546.57,0.00019178,2]
[374255810,1753258049305,-460.0,0.00019178,2]
[374255811,1753258049326,-461.51978713,0.00019178,2]
[374255812,1753258049348,-460.0,0.00019178,2]
[374255813,1753258049370,-460.0,0.00019178,2]
[374255814,1753258049392,-461.00550367,0.00019178,2]
[374255815,1753258049413,-460.0,0.00019178,2]
[374255816,1753258049434,-460.0,0.00019178,2]
[374255817,1753258049456,-460.0,0.00019178,2]
[374255818,1753258049477,-460.0,0.00019178,2]
[374255819,1753258049498,-460.0,0.00019178,2]
[374255820,1753258049519,-169.62,0.00019178,2]
[374255821,1753258049540,-460.0,0.00019178,2]
[374255822,1753258049564,-460.0,0.00019178,2]
[374255823,1753258049586,-460.0,0.00019178,2]
[374255824,1753258049609,-460.0,0.00019178,2]
[374255825,1753258049631,-460.0,0.00019178,2]
[374255826,1753258049652,-460.0,0.00019178,2]
[374255827,1753258049673,-460.0,0.00019178,2]
[374255828,1753258049695,-460.0,0.00019178,2]
[374255829,1753258049717,-460.0,0.00019178,2]
[374255830,1753258049740,-460.0,0.00019178,2]